fUST/lending_fUST_20240828
["ID","MTS","AMOUNT","RATE_DAILY","PERIOD"]
[336390302,1724802641269,-520.88,0.00010958,2]
[336390303,1724802641281,-500.0,0.00010958,2]
[336390304,1724802641294,-15447.81,0.00010958,2]
[336390305,1724802641306,-500.0,0.00010958,2]
[336390306,1724802641319,-500.0,0.00010958,2]
[336390307,1724802641331,-500.0,0.00010958,2]
[336390308,1724802641344,-500.0,0.00010958,2]
[336390309,1724802641356,-500.0,0.00010958,2]
[336390310,1724802641369,-466.07702903,0.00010958,2]
[336390311,1724802641381,-500.0,0.00010958,2]
[336390312,1724802641393,-500.0,0.00010958,2]
[336390313,1724802641405,-3344.14,0.00010958,2]
[336390314,1724802641416,-500.0,0.00010958,2]
[336390315,1724802641426,-500.0,0.00010958,2]
[336390316,1724802641437,-500.0,0.00010958,2]
[336390317,1724802641447,-500.0,0.00010958,2]
[336390318,1724802641458,-500.0,0.00010958,2]
[336390319,1724802641470,-500.0,0.00010958,2]
[336390320,1724802641481,-500.0,0.00010958,2]
[336390321,1724802641499,-500.0,0.00010958,2]
[336390322,1724802641511,-500.0,0.00010958,2]
[336390323,1724802641522,-500.0,0.00010958,2]
[336390324,1724802641533,-500.0,0.00010958,2]
[336390325,1724802641543,-471.61556285,0.00010958,2]
[336390326,1724802641555,-500.0,0.00010958,2]
[336390327,1724802641566,-500.0,0.00010958,2]
[336390328,1724802641577,-500.0,0.00010958,2]
[336390329,1724802641590,-500.0,0.00010958,2]
[336390330,1724802641603,-500.0,0.00010958,2]
[336390331,1724802641613,-500.0,0.00010958,2]
[336390332,1724802641624,-505.46494139,0.00010958,2]
[336390333,1724802641635,-938.0,0.00010958,2]
[336390334,1724802641645,-500.0,0.00010958,2]
[336390335,1724802641656,-571.54931738,0.00010958,2]
[336390336,1724802641668,-500.0,0.00010958,2]
[336390337,1724802641679,-500.0,0.00010958,2]
[336390338,1724802641691,-500.0,0.00010958,2]
[336390339,1724802641709,-500.0,0.00010958,2]
[336390340,1724802641720,-500.0,0.00010958,2]
[336390341,1724802641732,-500.0,0.00010958,2]
[336390342,1724802641747,-500.0,0.00010958,2]
[336390343,1724802641759,-500.0,0.00010958,2]
[336390344,1724802641770,-500.0,0.00010958,2]
[336390345,1724802641782,-500.0,0.00010958,2]
[336390346,1724802641793,-500.0,0.00010958,2]
[336390347,1724802641805,-500.0,0.00010958,2]
[336390348,1724802641817,-500.0,0.00010958,2]
[336390349,1724802641830,-500.0,0.00010958,2]
[336390350,1724802641841,-500.0,0.00010958,2]
[336390351,1724802641853,-500.0,0.00010958,2]
[336390352,1724802641864,-500.0,0.00010958,2]
[336390353,1724802641876,-500.0,0.00010958,2]
[336390354,1724802641887,-500.0,0.00010958,2]
[336390355,1724802641898,-462.36139297,0.00010958,2]
[336390356,1724802641910,-500.0,0.00010958,2]
[336390357,1724802641923,-534.2102392,0.00010958,2]
[336390358,1724802641936,-500.0,0.00010958,2]
[336390359,1724802641948,-500.0,0.00010958,2]
[336390360,1724802641960,-500.0,0.00010958,2]
[336390361,1724802641971,-2236.77,0.00010958,2]
[336390362,1724802641983,-579.25,0.00010958,2]
[336390363,1724802641995,-500.0,0.00010958,2]
[336390364,1724802642007,-500.0,0.00010958,2]
[336390365,1724802642019,-500.0,0.00010958,2]
[336390366,1724802642031,-500.0,0.00010958,2]
[336390367,1724802642043,-500.0,0.00010958,2]
[336390368,1724802642055,-500.0,0.00010958,2]
[336390369,1724802642066,-500.0,0.00010958,2]
[336390370,1724802642078,-500.0,0.00010958,2]
[336390371,1724802642089,-500.0,0.00010958,2]
[336390372,1724802642100,-500.0,0.00010958,2]
[336390373,1724802642111,-185.41766373,0.00010958,2]
[336390374,1724802642122,-500.0,0.00010958,2]
[336390375,1724802642133,-500.0,0.00010958,2]
[336390376,1724802642144,-500.0,0.00010958,2]
[336390377,1724802642156,-741.28,0.00010958,2]
[336390378,1724802642167,-500.0,0.00010958,2]
[336390379,1724802642181,-500.0,0.00010958,2]
[336390380,1724802642192,-500.0,0.00010958,2]
[336390381,1724802642203,-500.0,0.00010958,2]
[336390382,1724802642215,-305.96956731,0.00010958,2]
[336390383,1724802642226,-500.0,0.00010958,2]
[336390384,1724802642238,-8166.85,0.00010958,2]
[336390385,1724802642252,-500.0,0.00010958,2]
[336390386,1724802642263,-500.0,0.00010958,2]
[336390387,1724802642274,-500.0,0.00010958,2]
[336390388,1724802642286,-500.0,0.00010958,2]
[336390389,1724802642297,-500.0,0.00010958,2]
[336390390,1724802642309,-500.0,0.00010958,2]
[336390391,1724802642320,-1297.63,0.00010958,2]
[336390392,1724802642332,-500.0,0.00010958,2]
[336390393,1724802642344,-500.0,0.00010958,2]
[336390394,1724802642357,-500.0,0.00010958,2]
[336390395,1724802642369,-500.0,0.00010958,2]
[336390396,1724802642381,-393.87105477,0.00010958,2]
[336390397,1724802642393,-5081.65,0.00010958,2]
[336390398,1724802642406,-3104.79,0.00010958,2]
[336390399,1724802642417,-500.0,0.00010958,2]
[336390400,1724802642429,-586.75239976,0.00010958,2]
[336390401,1724802642439,-500.0,0.00010958,2]
[336390402,1724802642451,-466.91803791,0.00010958,2]
[336390403,1724802642462,-500.0,0.00010958,2]
[336390404,1724802642473,-500.0,0.00010958,2]
[336390405,1724802642484,-500.0,0.00010958,2]
[336390406,1724802642497,-500.0,0.00010958,2]
[336390407,1724802642508,-500.0,0.00010958,2]
[336390408,1724802642519,-218.50278203,0.00010958,2]
[336390409,1724802642531,-385.85217683,0.00010958,2]
[336390410,1724802642542,-3613.11,0.00010958,2]
[336390411,1724802642553,-500.0,0.00010958,2]
[336390412,1724802642564,-568.12170378,0.00010958,2]
[336390413,1724802642576,-500.0,0.00010958,2]
[336390414,1724802642587,-500.0,0.00010958,2]
[336390415,1724802642598,-500.0,0.00010958,2]
[336390416,1724802642608,-500.0,0.00010958,2]
[336390417,1724802642619,-500.0,0.00010958,2]
[336390418,1724802642631,-500.0,0.00010958,2]
[336390419,1724802642641,-500.0,0.00010958,2]
[336390420,1724802642653,-2861.3,0.00010958,2]
[336390421,1724802642664,-500.0,0.00010958,2]
[336390422,1724802642675,-500.0,0.00010958,2]
[336390423,1724802642687,-500.0,0.00010958,2]
[336390424,1724802642698,-535.81319626,0.00010958,2]
[336390425,1724802642709,-500.0,0.00010958,2]
[336390426,1724802642720,-500.0,0.00010958,2]
[336390427,1724802642731,-500.0,0.00010958,2]
[336390428,1724802642742,-500.0,0.00010958,2]
[336390429,1724802642753,-500.0,0.00010958,2]
[336390430,1724802642765,-500.0,0.00010958,2]
[336390431,1724802642776,-500.0,0.00010958,2]
[336390432,1724802642787,-3240.52,0.00010958,2]
[336390433,1724802642799,-500.0,0.00010958,2]
[336390434,1724802642810,-857.375,0.00010959,2]
[336390435,1724802642821,-235.772684,0.00010959,2]
[336390436,1724802642832,-235.772684,0.00011096,2]
[336390437,1724802642841,-11005.84389398,0.00011132,2]
[336390438,1724802642851,-500.0,0.00011231,2]
[336390439,1724802642861,-500.0,0.00011231,2]
[336390440,1724802642871,-500.0,0.00011231,2]
[336390441,1724802642880,-500.0,0.00011231,2]
[336390442,1724802642890,-500.0,0.00011231,2]
[336390443,1724802642900,-388.63,0.00011232,2]
[336390444,1724802642911,-523.09,0.00011232,2]
[336390460,1724802643122,-500.0,0.00011232,2]
[336390462,1724802643134,-500.0,0.00011232,2]
[336390463,1724802643143,-242.22,0.00011232,2]
[336390464,1724802643152,-500.0,0.00011232,2]
[336390465,1724802643163,-290.93984343,0.00011232,2]
[336390466,1724802643175,-500.0,0.00011232,2]
[336390468,1724802643185,-583.86,0.00011232,2]
[336390469,1724802643194,-628.4,0.00011232,2]
[336390470,1724802643203,-161.57,0.00011232,2]
[336390471,1724802643213,-1265.21,0.00011232,2]
[336390472,1724802643223,-500.0,0.00011232,2]
[336390473,1724802643233,-500.0,0.00011232,2]
[336390474,1724802643243,-591.65871831,0.00011232,2]
[336390475,1724802643254,-500.0,0.00011232,2]
[336390476,1724802643263,-500.0,0.00011232,2]
[336390477,1724802643274,-500.0,0.00011232,2]
[336390478,1724802643283,-500.0,0.00011232,2]
[336390479,1724802643292,-500.0,0.00011232,2]
[336390480,1724802643303,-500.0,0.00011232,2]
[336390481,1724802643315,-707.04,0.00011232,2]
[336390482,1724802643326,-193.73,0.00011232,2]
[336390483,1724802643336,-500.0,0.00011232,2]
[336390484,1724802643345,-500.0,0.00011232,2]
[336390485,1724802643354,-500.0,0.00011232,2]
[336390486,1724802643364,-568.64,0.00011232,2]
[336390487,1724802643373,-500.0,0.00011232,2]
[336390488,1724802643385,-1312.42,0.00011232,2]
[336390489,1724802643396,-614.99708397,0.00011232,2]
[336390490,1724802643405,-253.03,0.00011232,2]
[336390491,1724802643414,-500.0,0.00011232,2]
[336390492,1724802643425,-500.0,0.00011232,2]
[336390493,1724802643435,-500.0,0.00011232,2]
[336390494,1724802643447,-500.0,0.00011232,2]
[336390495,1724802643458,-500.0,0.00011232,2]
[336390496,1724802643467,-500.0,0.00011232,2]
[336390497,1724802643476,-500.0,0.00011232,2]
[336390498,1724802643488,-500.0,0.00011232,2]
[336390499,1724802643500,-500.0,0.00011232,2]
[336390500,1724802643509,-500.0,0.00011232,2]
[336390501,1724802643517,-500.0,0.00011232,2]
[336390502,1724802643526,-500.0,0.00011232,2]
[336390503,1724802643536,-500.0,0.00011232,2]
[336390504,1724802643546,-500.0,0.00011232,2]
[336390505,1724802643555,-500.0,0.00011232,2]
[336390506,1724802643565,-500.0,0.00011232,2]
[336390507,1724802643574,-319.11,0.00011232,2]
[336390508,1724802643583,-500.0,0.00011232,2]
[336390509,1724802643593,-500.0,0.00011232,2]
[336390510,1724802643603,-500.0,0.00011232,2]
[336390511,1724802643612,-540.24442495,0.00011232,2]
[336390512,1724802643623,-500.0,0.00011232,2]
[336390513,1724802643633,-865.33,0.00011232,2]
[336390514,1724802643643,-500.0,0.00011232,2]
[336390515,1724802643653,-208.59094196,0.00011232,2]
[336390516,1724802643664,-500.0,0.00011232,2]
[336390517,1724802643675,-315.48079459,0.00011232,2]
[336390518,1724802643686,-500.0,0.00011232,2]
[336390519,1724802643696,-500.0,0.00011232,2]
[336390520,1724802643708,-500.0,0.00011232,2]
[336390521,1724802643719,-500.0,0.00011232,2]
[336390522,1724802643730,-500.0,0.00011232,2]
[336390523,1724802643743,-501.08364089,0.00011232,2]
[336390524,1724802643753,-500.0,0.00011232,2]
[336390525,1724802643762,-500.0,0.00011232,2]
[336390526,1724802643772,-500.0,0.00011232,2]
[336390527,1724802643782,-500.0,0.00011232,2]
[336390528,1724802643791,-552.64,0.00011232,2]
[336390529,1724802643801,-500.0,0.00011232,2]
[336390531,1724802643810,-502.4613839,0.00011232,2]
[336390532,1724802643820,-500.0,0.00011232,2]
[336390533,1724802643829,-500.0,0.00011232,2]
[336390534,1724802643839,-500.0,0.00011232,2]
[336390535,1724802643848,-500.0,0.00011232,2]
[336390536,1724802643859,-500.0,0.00011232,2]
[336390537,1724802643868,-4544.41,0.00011232,2]
[336390538,1724802643877,-500.0,0.00011232,2]
[336390539,1724802643886,-500.0,0.00011232,2]
[336390540,1724802643895,-573.0,0.00011232,2]
[336390541,1724802643904,-500.0,0.00011232,2]
[336390542,1724802643913,-500.0,0.00011232,2]
[336390543,1724802643922,-900.28,0.00011232,2]
[336390544,1724802643931,-500.0,0.00011232,2]
[336390545,1724802643940,-500.0,0.00011232,2]
[336390546,1724802643949,-763.62,0.00011232,2]
[336390547,1724802643958,-1958.28,0.00011232,2]
[336390548,1724802643967,-1720.04,0.00011232,2]
[336390549,1724802643976,-796.45,0.00011232,2]
[336390550,1724802643985,-4130.13,0.00011232,2]
[336390551,1724802643994,-500.0,0.00011232,2]
[336390552,1724802644004,-500.0,0.00011232,2]
[336390553,1724802644013,-3317.75,0.00011232,2]
[336390554,1724802644022,-500.0,0.00011232,2]
[336390555,1724802644031,-501.92765703,0.00011232,2]
[336390556,1724802644041,-500.0,0.00011232,2]
[336390557,1724802644052,-472.88064532,0.00011232,2]
[336390558,1724802644063,-520.88,0.00011232,2]
[336390559,1724802644072,-500.0,0.00011232,2]
[336390560,1724802644081,-15447.81,0.00011232,2]
[336390561,1724802644090,-500.0,0.00011232,2]
[336390562,1724802644100,-484.03,0.00011232,2]
[336390563,1724802644110,-500.0,0.00011232,2]
[336390564,1724802644121,-500.0,0.00011232,2]
[336390565,1724802644133,-500.0,0.00011232,2]
[336390566,1724802644143,-3344.14,0.00011232,2]
[336390567,1724802644153,-500.0,0.00011232,2]
[336390568,1724802644163,-500.0,0.00011232,2]
[336390569,1724802644176,-500.0,0.00011232,2]
[336390570,1724802644187,-500.0,0.00011232,2]
[336390571,1724802644197,-500.0,0.00011232,2]
[336390572,1724802644207,-500.0,0.00011232,2]
[336390573,1724802644218,-500.0,0.00011232,2]
[336390574,1724802644229,-502.70080558,0.00011232,2]
[336390575,1724802644239,-500.0,0.00011232,2]
[336390576,1724802644249,-500.0,0.00011232,2]
[336390577,1724802644259,-500.0,0.00011232,2]
[336390578,1724802644268,-938.0,0.00011232,2]
[336390579,1724802644277,-500.0,0.00011232,2]
[336390580,1724802644286,-500.0,0.00011232,2]
[336390581,1724802644295,-500.0,0.00011232,2]
[336390582,1724802644305,-500.0,0.00011232,2]
[336390583,1724802644316,-649.88,0.00011232,2]
[336390584,1724802644325,-500.0,0.00011232,2]
[336390585,1724802644337,-500.0,0.00011232,2]
[336390586,1724802644349,-172.65,0.00011232,2]
[336390587,1724802644358,-500.0,0.00011232,2]
[336390588,1724802644368,-500.0,0.00011232,2]
[336390589,1724802644378,-500.0,0.00011232,2]
[336390590,1724802644387,-500.0,0.00011232,2]
[336390591,1724802644396,-500.0,0.00011232,2]
[336390592,1724802644408,-500.0,0.00011232,2]
[336390593,1724802644418,-500.0,0.00011232,2]
[336390594,1724802644428,-500.0,0.00011232,2]
[336390595,1724802644438,-2236.77,0.00011232,2]
[336390596,1724802644449,-579.25,0.00011232,2]
[336390597,1724802644460,-500.0,0.00011232,2]
[336390598,1724802644470,-500.0,0.00011232,2]
[336390599,1724802644480,-500.0,0.00011232,2]
[336390600,1724802644490,-500.0,0.00011232,2]
[336390601,1724802644502,-506.66,0.00011232,2]
[336390602,1724802644513,-500.0,0.00011232,2]
[336390603,1724802644524,-161.57346621,0.00011232,2]
[336390604,1724802644533,-500.0,0.00011232,2]
[336390605,1724802644542,-500.0,0.00011232,2]
[336390606,1724802644551,-741.28,0.00011232,2]
[336390607,1724802644561,-500.0,0.00011232,2]
[336390608,1724802644570,-550.79,0.00011232,2]
[336390609,1724802644579,-500.0,0.00011232,2]
[336390610,1724802644588,-8166.85,0.00011232,2]
[336390611,1724802644598,-500.0,0.00011232,2]
[336390612,1724802644607,-500.0,0.00011232,2]
[336390613,1724802644617,-500.0,0.00011232,2]
[336390614,1724802644626,-500.0,0.00011232,2]
[336390615,1724802644635,-632.00744761,0.00011232,2]
[336390616,1724802644644,-1297.63,0.00011232,2]
[336390617,1724802644654,-500.0,0.00011232,2]
[336390618,1724802644663,-5081.65,0.00011232,2]
[336390619,1724802644672,-3104.79,0.00011232,2]
[336390620,1724802644682,-500.0,0.00011232,2]
[336390621,1724802644691,-500.0,0.00011232,2]
[336390622,1724802644700,-500.0,0.00011232,2]
[336390623,1724802644710,-500.0,0.00011232,2]
[336390624,1724802644718,-500.0,0.00011232,2]
[336390625,1724802644729,-3613.11,0.00011232,2]
[336390626,1724802644739,-500.0,0.00011232,2]
[336390627,1724802644750,-2861.3,0.00011232,2]
[336390628,1724802644767,-500.0,0.00011232,2]
[336390629,1724802644776,-500.0,0.00011232,2]
[336390630,1724802644786,-500.0,0.00011232,2]
[336390631,1724802644796,-500.0,0.00011232,2]
[336390632,1724802644807,-562.08,0.00011232,2]
[336390633,1724802644817,-500.0,0.00011232,2]
[336390634,1724802644829,-500.0,0.00011232,2]
[336390635,1724802644840,-3240.52,0.00011232,2]
[336390636,1724802644850,-500.0,0.00011232,2]
[336390637,1724802644861,-235.772684,0.00011233,2]
[336390638,1724802644872,-500.0,0.00011273,2]
[336390639,1724802644884,-500.0,0.00011273,2]
[336390640,1724802644895,-347.0931,0.00011273,2]
[336390641,1724802644906,-500.40823042,0.00011273,2]
[336390642,1724802644917,-501.67839823,0.00011273,2]
[336390643,1724802644927,-500.0,0.00011273,2]
[336390644,1724802644936,-434.90866,0.00011273,2]
[336390645,1724802644947,-500.0,0.00011308,2]
[336390646,1724802644957,-235.772684,0.0001137,2]
[336390647,1724802644968,-500.0,0.00011405,2]
[336390648,1724802644978,-30000.0,0.00011406,2]
[336390649,1724802644987,-1218.31357571,0.00011409,2]
[336390650,1724802645001,-947.018531,0.00011409,2]
[336390651,1724802645011,-500.0,0.00011505,2]
[336390652,1724802645022,-500.0,0.00011505,2]
[336390653,1724802645031,-500.0,0.00011505,2]
[336390654,1724802645042,-500.0,0.00011505,2]
[336390655,1724802645052,-248.96167621,0.00011506,5]
[336390656,1724802645063,-500.0,0.00011506,2]
[336390657,1724802645072,-1265.21,0.00011506,2]
[336390658,1724802645083,-500.0,0.00011506,2]
[336390659,1724802645093,-500.0,0.00011506,2]
[336390660,1724802645102,-500.0,0.00011506,2]
[336390661,1724802645111,-500.0,0.00011506,2]
[336390662,1724802645120,-707.04,0.00011506,2]
[336390663,1724802645129,-500.0,0.00011506,2]
[336390664,1724802645138,-500.0,0.00011506,2]
[336390665,1724802645147,-1312.42,0.00011506,2]
[336390666,1724802645156,-500.0,0.00011506,2]
[336390667,1724802645167,-500.0,0.00011506,2]
[336390668,1724802645180,-500.0,0.00011506,2]
[336390669,1724802645190,-500.0,0.00011506,2]
[336390670,1724802645199,-500.0,0.00011506,2]
[336390671,1724802645208,-602.9,0.00011506,2]
[336390672,1724802645218,-500.0,0.00011506,2]
[336390673,1724802645228,-500.0,0.00011506,2]
[336390674,1724802645238,-500.0,0.00011506,2]
[336390675,1724802645257,-500.0,0.00011506,2]
[336390676,1724802645267,-500.0,0.00011506,2]
[336390677,1724802645276,-500.0,0.00011506,2]
[336390678,1724802645285,-500.0,0.00011506,2]
[336390679,1724802645294,-195.32,0.00011506,2]
[336390680,1724802645303,-345.93000185,0.00011506,2]
[336390681,1724802645312,-500.0,0.00011506,2]
[336390682,1724802645321,-488.05,0.00011506,2]
[336390683,1724802645330,-865.33,0.00011506,2]
[336390684,1724802645340,-500.0,0.00011506,2]
[336390685,1724802645352,-564.37355843,0.00011506,2]
[336390686,1724802645362,-500.0,0.00011506,2]
[336390687,1724802645373,-500.0,0.00011506,2]
[336390688,1724802645384,-500.0,0.00011506,2]
[336390689,1724802645393,-500.0,0.00011506,2]
[336390690,1724802645403,-500.0,0.00011506,2]
[336390691,1724802645414,-500.0,0.00011506,2]
[336390692,1724802645425,-177.23,0.00011506,2]
[336390693,1724802645434,-552.64,0.00011506,2]
[336390694,1724802645444,-500.0,0.00011506,2]
[336390695,1724802645453,-512.95338622,0.00011506,2]
[336390696,1724802645462,-500.0,0.00011506,2]
[336390697,1724802645473,-4544.41,0.00011506,2]
[336390698,1724802645484,-534.76,0.00011506,2]
[336390699,1724802645493,-222.40196587,0.00011506,2]
[336390700,1724802645504,-463.30527446,0.00011506,2]
[336390701,1724802645514,-500.0,0.00011506,2]
[336390702,1724802645524,-900.28,0.00011506,2]
[336390703,1724802645535,-500.0,0.00011506,2]
[336390704,1724802645544,-763.62,0.00011506,2]
[336390705,1724802645554,-1958.28,0.00011506,2]
[336390706,1724802645564,-1720.04,0.00011506,2]
[336390707,1724802645574,-796.45,0.00011506,2]
[336390708,1724802645583,-4130.13,0.00011506,2]
[336390709,1724802645594,-500.0,0.00011506,2]
[336390710,1724802645603,-3317.75,0.00011506,2]
[336390711,1724802645613,-275.56946795,0.00011506,2]
[336390712,1724802645622,-500.0,0.00011506,2]
[336390713,1724802645632,-520.88,0.00011506,2]
[336390714,1724802645641,-500.0,0.00011506,2]
[336390715,1724802645652,-15447.81,0.00011506,2]
[336390716,1724802645662,-500.0,0.00011506,2]
[336390717,1724802645672,-500.0,0.00011506,2]
[336390718,1724802645681,-500.0,0.00011506,2]
[336390719,1724802645690,-3344.14,0.00011506,2]
[336390720,1724802645701,-500.0,0.00011506,2]
[336390721,1724802645710,-500.0,0.00011506,2]
[336390722,1724802645720,-500.0,0.00011506,2]
[336390723,1724802645729,-500.0,0.00011506,2]
[336390724,1724802645739,-500.0,0.00011506,2]
[336390725,1724802645749,-222.16,0.00011506,2]
[336390726,1724802645759,-500.0,0.00011506,2]
[336390727,1724802645769,-500.0,0.00011506,2]
[336390728,1724802645778,-938.0,0.00011506,2]
[336390729,1724802645788,-500.0,0.00011506,2]
[336390730,1724802645797,-221.64111306,0.00011506,2]
[336390731,1724802645807,-500.0,0.00011506,2]
[336390732,1724802645816,-587.01,0.00011506,2]
[336390733,1724802645826,-158.73,0.00011506,2]
[336390734,1724802645835,-500.0,0.00011506,2]
[336390735,1724802645845,-500.0,0.00011506,2]
[336390737,1724802645855,-500.0,0.00011506,2]
[336390738,1724802645866,-500.0,0.00011506,2]
[336390739,1724802645875,-500.0,0.00011506,2]
[336390740,1724802645885,-2236.77,0.00011506,2]
[336390741,1724802645897,-579.25,0.00011506,2]
[336390742,1724802645907,-500.0,0.00011506,2]
[336390743,1724802645919,-500.0,0.00011506,2]
[336390744,1724802645930,-500.0,0.00011506,2]
[336390745,1724802645941,-505.52,0.00011506,2]
[336390746,1724802645952,-741.28,0.00011506,2]
[336390748,1724802645962,-572.61,0.00011506,2]
[336390749,1724802645972,-8166.85,0.00011506,2]
[336390750,1724802645982,-500.0,0.00011506,2]
[336390751,1724802645993,-500.0,0.00011506,2]
[336390752,1724802646004,-500.0,0.00011506,2]
[336390753,1724802646013,-500.0,0.00011506,2]
[336390754,1724802646024,-1297.63,0.00011506,2]
[336390755,1724802646033,-5081.65,0.00011506,2]
[336390756,1724802646043,-3104.79,0.00011506,2]
[336390757,1724802646052,-500.0,0.00011506,2]
[336390758,1724802646062,-500.0,0.00011506,2]
[336390759,1724802646073,-3613.11,0.00011506,2]
[336390761,1724802646082,-500.0,0.00011506,2]
[336390763,1724802646092,-2861.3,0.00011506,2]
[336390765,1724802646102,-500.0,0.00011506,2]
[336390767,1724802646115,-500.0,0.00011506,2]
[336390769,1724802646125,-500.0,0.00011506,2]
[336390771,1724802646136,-500.0,0.00011506,2]
[336390772,1724802646146,-559.88,0.00011506,2]
[336390773,1724802646158,-245.78,0.00011506,2]
[336390774,1724802646169,-3240.52,0.00011506,2]
[336390775,1724802646181,-500.0,0.00011506,2]
[336390776,1724802646191,-235.772684,0.00011507,2]
[336390777,1724802646200,-500.0,0.00011542,2]
[336390778,1724802646209,-1509.8743557,0.0001168,2]
[336390779,1724802646221,-2284.37692518,0.00011712,3]
[336390780,1724802646230,-500.0,0.0001173,2]
[336390781,1724802646241,-386.08321291,0.00011731,2]
[336390782,1724802646253,-11005.84389396,0.00011748,2]
[336390783,1724802646265,-500.0,0.00011779,2]
[336390784,1724802646274,-500.0,0.00011779,2]
[336390785,1724802646284,-500.0,0.0001178,2]
[336390786,1724802646293,-1265.21,0.0001178,2]
[336390787,1724802646302,-500.0,0.0001178,2]
[336390788,1724802646312,-500.0,0.0001178,2]
[336390789,1724802646322,-500.0,0.0001178,2]
[336390790,1724802646332,-707.04,0.0001178,2]
[336390791,1724802646342,-237.8,0.0001178,2]
[336390792,1724802646352,-500.0,0.0001178,2]
[336390794,1724802646361,-1312.42,0.0001178,2]
[336390795,1724802646373,-500.0,0.0001178,2]
[336390796,1724802646383,-591.65623637,0.0001178,2]
[336390797,1724802646393,-622.05,0.0001178,2]
[336390798,1724802646402,-500.0,0.0001178,2]
[336390799,1724802646413,-500.0,0.0001178,2]
[336390800,1724802646424,-500.0,0.0001178,2]
[336390801,1724802646433,-500.0,0.0001178,2]
[336390802,1724802646443,-500.0,0.0001178,2]
[336390803,1724802646578,-500.0,0.0001178,2]
[336390804,1724802646589,-500.0,0.0001178,2]
[336390805,1724802646600,-500.0,0.0001178,2]
[336390806,1724802646610,-500.0,0.0001178,2]
[336390807,1724802646620,-865.33,0.0001178,2]
[336390808,1724802646630,-500.0,0.0001178,2]
[336390809,1724802646639,-196.463438,0.0001178,2]
[336390810,1724802646650,-606.38,0.0001178,2]
[336390811,1724802646661,-500.0,0.0001178,2]
[336390812,1724802646670,-500.0,0.0001178,2]
[336390813,1724802646679,-500.0,0.0001178,2]
[336390814,1724802646690,-552.64,0.0001178,2]
[336390815,1724802646703,-500.0,0.0001178,2]
[336390816,1724802646713,-500.0,0.0001178,2]
[336390817,1724802646723,-4544.41,0.0001178,2]
[336390818,1724802646734,-900.28,0.0001178,2]
[336390819,1724802646747,-763.62,0.0001178,2]
[336390820,1724802646757,-1958.28,0.0001178,2]
[336390821,1724802646769,-1720.04,0.0001178,2]
[336390822,1724802646779,-796.45,0.0001178,2]
[336390823,1724802646788,-4130.13,0.0001178,2]
[336390824,1724802646799,-500.0,0.0001178,2]
[336390825,1724802646809,-3317.75,0.0001178,2]
[336390826,1724802646819,-500.0,0.0001178,2]
[336390827,1724802646834,-520.88,0.0001178,2]
[336390828,1724802646844,-15447.81,0.0001178,2]